[Event "Titled Tuesday Blitz January 17 Early 2023"]
[White "Omelja, Artem"]
[Black "Kobalia, Mikhail"]
[WhiteFideId "14119846"]
[BlackFideId "4119150"]
[WhiteElo "2446"]
[BlackElo "2578"]
[Result "0-1"]
[Round "11"]
[TimeControl "180+2"]
[Date "2023.01.17"]
[WhiteClock "0:00:06"]
[BlackClock "0:00:02"]

1. e4 {[%clk 0:03:00]}  c5 {[%clk 0:02:59]} 2. Nf3 {[%clk 0:03:00]}  e6 {[%clk 0:02:59]} 3. d3 {[%clk 0:03:00]}  Nc6 {[%clk 0:02:58]} 4. g3 {[%clk 0:03:00]}  g6 {[%clk 0:02:59]} 5. Bg2 {[%clk 0:03:00]}  Bg7 {[%clk 0:02:58]} 6. O-O {[%clk 0:03:01]}  Nge7 {[%clk 0:02:58]} 7. Re1 {[%clk 0:02:57]}  d6 {[%clk 0:02:56]} 8. c3 {[%clk 0:02:57]}  e5 {[%clk 0:02:56]} 9. Na3 {[%clk 0:02:55]}  O-O {[%clk 0:02:56]} 10. Nc2 {[%clk 0:02:55]}  a6 {[%clk 0:02:51]} 11. Be3 {[%clk 0:02:52]}  f5 {[%clk 0:02:35]} 12. d4 {[%clk 0:02:43]}  f4 {[%clk 0:02:33]} 13. Bc1 {[%clk 0:02:41]}  Bg4 {[%clk 0:02:21]} 14. dxc5 {[%clk 0:02:27]}  dxc5 {[%clk 0:02:19]} 15. Qe2 {[%clk 0:02:19]}  Qd7 {[%clk 0:02:07]} 16. Qc4+ {[%clk 0:02:10]}  Kh8 {[%clk 0:02:06]} 17. Nh4 {[%clk 0:01:40]}  Bf6 {[%clk 0:02:02]} 18. Qxc5 {[%clk 0:01:32]}  Bxh4 {[%clk 0:02:00]} 19. gxh4 {[%clk 0:01:33]}  f3 {[%clk 0:01:43]} 20. Bf1 {[%clk 0:01:29]}  Bh3 {[%clk 0:01:42]} 21. Ne3 {[%clk 0:01:27]}  Bxf1 {[%clk 0:01:41]} 22. Rxf1 {[%clk 0:01:21]}  Qh3 {[%clk 0:01:40]} 23. Rd1 {[%clk 0:00:43]}  Rf4 {[%clk 0:01:37]} 24. Qd6 {[%clk 0:00:32]}  Rg4+ {[%clk 0:01:37]} 25. Kh1 {[%clk 0:00:32]}  Rg2 {[%clk 0:01:32]} 26. Qf6+ {[%clk 0:00:32]}  Kg8 {[%clk 0:01:31]} 27. Qe6+ {[%clk 0:00:31]}  Qxe6 {[%clk 0:01:30]} 28. Nxg2 {[%clk 0:00:31]}  fxg2+ {[%clk 0:01:26]} 29. Kg1 {[%clk 0:00:32]}  Qg4 {[%clk 0:01:24]} 30. Bg5 {[%clk 0:00:32]}  Qxe4 {[%clk 0:01:20]} 31. Rd7 {[%clk 0:00:31]}  Nf5 {[%clk 0:01:18]} 32. Rad1 {[%clk 0:00:31]}  Nxh4 {[%clk 0:01:17]} 33. Bf6 {[%clk 0:00:27]}  Nf3+ {[%clk 0:01:09]} 34. Kxg2 {[%clk 0:00:27]}  Nh4+ {[%clk 0:01:09]} 35. Kf1 {[%clk 0:00:26]}  Qg2+ {[%clk 0:01:06]} 36. Ke1 {[%clk 0:00:26]}  Qg1+ {[%clk 0:01:03]} 37. Ke2 {[%clk 0:00:26]}  Qg4+ {[%clk 0:01:02]} 38. Kf1 {[%clk 0:00:27]}  Qh3+ {[%clk 0:00:56]} 39. Ke1 {[%clk 0:00:24]}  Ng2+ {[%clk 0:00:54]} 40. Ke2 {[%clk 0:00:20]}  Nd4+ {[%clk 0:00:46]} 41. cxd4 {[%clk 0:00:17]}  Qxd7 {[%clk 0:00:45]} 42. dxe5 {[%clk 0:00:17]}  Qg4+ {[%clk 0:00:44]} 43. f3 {[%clk 0:00:17]}  Nf4+ {[%clk 0:00:38]} 44. Ke3 {[%clk 0:00:17]}  Qf5 {[%clk 0:00:38]} 45. Rd4 {[%clk 0:00:12]}  Ne6 {[%clk 0:00:37]} 46. Rb4 {[%clk 0:00:12]}  b5 {[%clk 0:00:36]} 47. h4 {[%clk 0:00:09]}  Rc8 {[%clk 0:00:35]} 48. a4 {[%clk 0:00:08]}  Rc5 {[%clk 0:00:33]} 49. axb5 {[%clk 0:00:08]}  axb5 {[%clk 0:00:33]} 50. h5 {[%clk 0:00:07]}  gxh5 {[%clk 0:00:31]} 51. Rh4 {[%clk 0:00:07]}  Rd5 {[%clk 0:00:31]} 52. Kf2 {[%clk 0:00:06]}  Rd2+ {[%clk 0:00:30]} 53. Kg3 {[%clk 0:00:06]}  Rd3 {[%clk 0:00:30]} 54. Rb4 {[%clk 0:00:04]}  Qxf3+ {[%clk 0:00:28]} 55. Kh4 {[%clk 0:00:04]}  Rd4+ {[%clk 0:00:27]} 56. Rxd4 {[%clk 0:00:04]}  Nxd4 {[%clk 0:00:27]} 57. Kg5 {[%clk 0:00:05]}  Qg4+ {[%clk 0:00:26]} 58. Kh6 {[%clk 0:00:06]}  Nf5# {[%clk 0:00:02]} 0-1


[Site "https://www.chess.com"]

[Event "Titled Tuesday Blitz January 17 Early 2023"]
[White "Rozman, Levy"]
[Black "Kvaloy, Aksel Bu"]
[WhiteFideId "2039877"]
[BlackFideId "1528815"]
[WhiteElo "2322"]
[BlackElo "2321"]
[Result "1-0"]
[Round "11"]
[TimeControl "180+2"]
[Date "2023.01.17"]
[WhiteClock "0:00:16"]
[BlackClock "0:00:07"]

1. e4 {[%clk 0:03:00]}  e5 {[%clk 0:02:59]} 2. Nc3 {[%clk 0:03:00]}  Nf6 {[%clk 0:02:57]} 3. f4 {[%clk 0:03:01]}  d5 {[%clk 0:02:56]} 4. fxe5 {[%clk 0:03:01]}  Nxe4 {[%clk 0:02:56]} 5. Qf3 {[%clk 0:03:02]}  f5 {[%clk 0:02:55]} 6. d3 {[%clk 0:03:02]}  Nxc3 {[%clk 0:02:55]} 7. bxc3 {[%clk 0:03:02]}  d4 {[%clk 0:02:55]} 8. Qg3 {[%clk 0:03:01]}  Be6 {[%clk 0:02:53]} 9. Be2 {[%clk 0:03:00]}  Nc6 {[%clk 0:02:50]} 10. c4 {[%clk 0:02:58]}  Qd7 {[%clk 0:02:50]} 11. Bf3 {[%clk 0:02:54]}  g6 {[%clk 0:02:45]} 12. h4 {[%clk 0:02:34]}  Bg7 {[%clk 0:02:36]} 13. Bf4 {[%clk 0:02:30]}  O-O-O {[%clk 0:02:33]} 14. Nh3 {[%clk 0:02:25]}  Rhg8 {[%clk 0:02:25]} 15. O-O {[%clk 0:02:11]}  h6 {[%clk 0:02:22]} 16. Rab1 {[%clk 0:02:07]}  Rde8 {[%clk 0:01:56]} 17. Rb5 {[%clk 0:02:05]}  a6 {[%clk 0:01:55]} 18. Rc5 {[%clk 0:01:55]}  Qe7 {[%clk 0:01:40]} 19. Bxc6 {[%clk 0:01:39]}  bxc6 {[%clk 0:01:12]} 20. Rxc6 {[%clk 0:01:31]}  Bd7 {[%clk 0:01:10]} 21. Rxg6 {[%clk 0:01:25]}  Qf7 {[%clk 0:00:56]} 22. h5 {[%clk 0:01:19]}  Be6 {[%clk 0:00:46]} 23. Qf3 {[%clk 0:01:04]}  Kd7 {[%clk 0:00:38]} 24. Qf2 {[%clk 0:01:02]}  c5 {[%clk 0:00:37]} 25. Rb1 {[%clk 0:00:53]}  Rb8 {[%clk 0:00:36]} 26. Qe1 {[%clk 0:00:45]}  Rxb1 {[%clk 0:00:27]} 27. Qxb1 {[%clk 0:00:44]}  Kc7 {[%clk 0:00:28]} 28. Qe1 {[%clk 0:00:39]}  Kb6 {[%clk 0:00:22]} 29. Qg3 {[%clk 0:00:33]}  Kc7 {[%clk 0:00:17]} 30. Qf3 {[%clk 0:00:30]}  Qd7 {[%clk 0:00:15]} 31. Bxh6 {[%clk 0:00:27]}  Bxh6 {[%clk 0:00:15]} 32. Rxh6 {[%clk 0:00:28]}  f4 {[%clk 0:00:13]} 33. Nxf4 {[%clk 0:00:26]}  Bg4 {[%clk 0:00:13]} 34. Qd5 {[%clk 0:00:23]}  Qxd5 {[%clk 0:00:09]} 35. cxd5 {[%clk 0:00:19]}  Rf8 {[%clk 0:00:08]} 36. Rc6+ {[%clk 0:00:16]}  Kd7 {[%clk 0:00:07]} 37. e6+ {[%clk 0:00:15]}  Ke7 {[%clk 0:00:07]} 38. Ng6+ {[%clk 0:00:16]} 1-0


[Site "https://www.chess.com"]

[Event "Titled Tuesday Blitz January 17 Early 2023"]
[White "Bocharov, Dmitry"]
[Black "Bettalli, Francesco"]
[WhiteFideId "4138716"]
[BlackFideId "2816453"]
[WhiteElo "2516"]
[BlackElo "2252"]
[Result "1-0"]
[Round "11"]
[TimeControl "180+2"]
[Date "2023.01.17"]
[WhiteClock "0:01:19"]
[BlackClock "0:01:51"]

1. e4 {[%clk 0:03:00]}  g6 {[%clk 0:02:56]} 2. d4 {[%clk 0:02:59]}  Bg7 {[%clk 0:02:55]} 3. Nc3 {[%clk 0:02:59]}  c6 {[%clk 0:02:55]} 4. f4 {[%clk 0:02:54]}  d5 {[%clk 0:02:55]} 5. e5 {[%clk 0:02:54]}  h5 {[%clk 0:02:56]} 6. Nf3 {[%clk 0:02:52]}  Nh6 {[%clk 0:02:55]} 7. Be2 {[%clk 0:02:48]}  Bg4 {[%clk 0:02:55]} 8. O-O {[%clk 0:02:48]}  Nd7 {[%clk 0:02:54]} 9. Ng5 {[%clk 0:02:47]}  Bxe2 {[%clk 0:02:53]} 10. Nxe2 {[%clk 0:02:47]}  e6 {[%clk 0:02:54]} 11. b3 {[%clk 0:02:41]}  c5 {[%clk 0:02:53]} 12. c4 {[%clk 0:02:35]}  dxc4 {[%clk 0:02:47]} 13. d5 {[%clk 0:02:34]}  exd5 {[%clk 0:02:41]} 14. Qxd5 {[%clk 0:02:31]}  Nb6 {[%clk 0:02:42]} 15. Qxb7 {[%clk 0:02:30]}  cxb3 {[%clk 0:02:30]} 16. Be3 {[%clk 0:02:21]}  Qc8 {[%clk 0:02:20]} 17. Qxc8+ {[%clk 0:02:19]}  Rxc8 {[%clk 0:02:20]} 18. axb3 {[%clk 0:02:19]}  Ng4 {[%clk 0:02:18]} 19. Bf2 {[%clk 0:02:08]}  Nxf2 {[%clk 0:02:17]} 20. Kxf2 {[%clk 0:02:08]}  Rc7 {[%clk 0:02:17]} 21. Nc3 {[%clk 0:02:06]}  O-O {[%clk 0:02:14]} 22. Nb5 {[%clk 0:02:05]}  Rd7 {[%clk 0:02:14]} 23. Rfd1 {[%clk 0:02:04]}  Rfd8 {[%clk 0:02:14]} 24. Rxd7 {[%clk 0:02:03]}  Rxd7 {[%clk 0:02:15]} 25. Rxa7 {[%clk 0:02:02]}  Rd2+ {[%clk 0:02:15]} 26. Kf3 {[%clk 0:01:58]}  Bh6 {[%clk 0:02:08]} 27. Nxf7 {[%clk 0:01:53]}  Bxf4 {[%clk 0:02:04]} 28. g3 {[%clk 0:01:29]}  Bxg3 {[%clk 0:02:02]} 29. hxg3 {[%clk 0:01:27]}  Rd3+ {[%clk 0:02:01]} 30. Kf4 {[%clk 0:01:25]}  Nd5+ {[%clk 0:01:58]} 31. Ke4 {[%clk 0:01:23]}  Rxb3 {[%clk 0:01:56]} 32. Kxd5 {[%clk 0:01:22]}  Rxb5 {[%clk 0:01:56]} 33. Nd6 {[%clk 0:01:21]}  Rb1 {[%clk 0:01:55]} 34. e6 {[%clk 0:01:19]}  Rd1+ {[%clk 0:01:49]} 35. Ke5 {[%clk 0:01:19]}  Re1+ {[%clk 0:01:50]} 36. Kf6 {[%clk 0:01:19]}  Rf1+ {[%clk 0:01:51]} 37. Kxg6 {[%clk 0:01:19]} 1-0


[Site "https://www.chess.com"]

[Event "Titled Tuesday Blitz January 17 Early 2023"]
[White "Sadubayev, Airat"]
[Black "Narayanan, Srinath"]
[WhiteFideId "13713264"]
[BlackFideId "5018420"]
[WhiteElo "2320"]
[BlackElo "2559"]
[Result "0-1"]
[Round "11"]
[TimeControl "180+2"]
[Date "2023.01.17"]
[WhiteClock "0:00:05"]
[BlackClock "0:01:47"]

1. d4 {[%clk 0:02:59]}  f5 {[%clk 0:02:58]} 2. c4 {[%clk 0:02:59]}  Nf6 {[%clk 0:02:58]} 3. Nc3 {[%clk 0:02:58]}  g6 {[%clk 0:02:59]} 4. Nf3 {[%clk 0:02:54]}  Bg7 {[%clk 0:03:00]} 5. g3 {[%clk 0:02:54]}  O-O {[%clk 0:03:00]} 6. Bg2 {[%clk 0:02:54]}  d6 {[%clk 0:03:00]} 7. O-O {[%clk 0:02:53]}  Nbd7 {[%clk 0:03:01]} 8. d5 {[%clk 0:02:45]}  e5 {[%clk 0:02:58]} 9. dxe6 {[%clk 0:02:40]}  Nc5 {[%clk 0:02:59]} 10. Nd4 {[%clk 0:02:27]}  c6 {[%clk 0:02:59]} 11. Bf4 {[%clk 0:02:13]}  Nh5 {[%clk 0:02:55]} 12. Be3 {[%clk 0:02:01]}  f4 {[%clk 0:02:52]} 13. gxf4 {[%clk 0:01:40]}  Nxe6 {[%clk 0:02:50]} 14. Nxe6 {[%clk 0:01:35]}  Bxe6 {[%clk 0:02:51]} 15. Qb3 {[%clk 0:01:31]}  Qe7 {[%clk 0:02:46]} 16. Rad1 {[%clk 0:01:22]}  Nxf4 {[%clk 0:02:44]} 17. Bxf4 {[%clk 0:01:20]}  Rxf4 {[%clk 0:02:45]} 18. Qb4 {[%clk 0:01:19]}  Rd8 {[%clk 0:02:40]} 19. Ne4 {[%clk 0:01:12]}  Bh3 {[%clk 0:02:19]} 20. Ng3 {[%clk 0:00:59]}  Bxg2 {[%clk 0:02:16]} 21. Kxg2 {[%clk 0:01:00]}  h5 {[%clk 0:02:17]} 22. e3 {[%clk 0:00:55]}  Rf7 {[%clk 0:02:13]} 23. c5 {[%clk 0:00:53]}  d5 {[%clk 0:02:11]} 24. Kh1 {[%clk 0:00:35]}  Qf6 {[%clk 0:02:07]} 25. Rd2 {[%clk 0:00:31]}  d4 {[%clk 0:02:00]} 26. Qb3 {[%clk 0:00:22]}  h4 {[%clk 0:01:55]} 27. exd4 {[%clk 0:00:13]}  hxg3 {[%clk 0:01:54]} 28. hxg3 {[%clk 0:00:13]}  Rxd4 {[%clk 0:01:54]} 29. Re2 {[%clk 0:00:11]}  Qf3+ {[%clk 0:01:47]} 30. Qxf3 {[%clk 0:00:11]}  Rxf3 {[%clk 0:01:48]} 31. Kg2 {[%clk 0:00:10]}  Rf7 {[%clk 0:01:47]} 32. Rfe1 {[%clk 0:00:09]}  Rc4 {[%clk 0:01:46]} 33. Re8+ {[%clk 0:00:08]}  Bf8 {[%clk 0:01:47]} 34. R1e6 {[%clk 0:00:05]}  Kg7 {[%clk 0:01:47]} 0-1


[Site "https://www.chess.com"]

[Event "Titled Tuesday Blitz January 17 Early 2023"]
[White "Cherniaiev, Tykhon"]
[Black "Trent, Lawrence"]
[WhiteFideId "14182360"]
[BlackFideId "408638"]
[WhiteElo "2330"]
[BlackElo "2403"]
[Result "1/2-1/2"]
[Round "11"]
[TimeControl "180+2"]
[Date "2023.01.17"]
[WhiteClock "0:00:06"]
[BlackClock "0:00:05"]

1. Nf3 {[%clk 0:03:00]}  Nc6 {[%clk 0:02:50]} 2. d4 {[%clk 0:03:00]}  d5 {[%clk 0:02:48]} 3. c4 {[%clk 0:03:01]}  e5 {[%clk 0:02:45]} 4. cxd5 {[%clk 0:02:59]}  Qxd5 {[%clk 0:02:44]} 5. Nc3 {[%clk 0:02:57]}  Bb4 {[%clk 0:02:45]} 6. Bd2 {[%clk 0:02:54]}  Bxc3 {[%clk 0:02:44]} 7. Bxc3 {[%clk 0:02:54]}  e4 {[%clk 0:02:42]} 8. Ne5 {[%clk 0:02:34]}  Nge7 {[%clk 0:02:36]} 9. e3 {[%clk 0:02:32]}  Nxe5 {[%clk 0:02:17]} 10. dxe5 {[%clk 0:02:33]}  Qxd1+ {[%clk 0:02:12]} 11. Rxd1 {[%clk 0:02:34]}  Be6 {[%clk 0:02:12]} 12. a3 {[%clk 0:02:32]}  O-O {[%clk 0:02:06]} 13. Be2 {[%clk 0:02:28]}  Rfd8 {[%clk 0:02:01]} 14. O-O {[%clk 0:02:27]}  Kf8 {[%clk 0:02:01]} 15. f3 {[%clk 0:02:21]}  exf3 {[%clk 0:01:54]} 16. gxf3 {[%clk 0:02:16]}  Ke8 {[%clk 0:01:53]} 17. e4 {[%clk 0:02:08]}  c5 {[%clk 0:01:38]} 18. f4 {[%clk 0:02:03]}  Nc6 {[%clk 0:01:38]} 19. Bb5 {[%clk 0:01:42]}  Bb3 {[%clk 0:01:35]} 20. Rd6 {[%clk 0:01:27]}  Rxd6 {[%clk 0:01:19]} 21. exd6 {[%clk 0:01:28]}  Kd7 {[%clk 0:01:20]} 22. e5 {[%clk 0:01:16]}  Re8 {[%clk 0:01:10]} 23. Re1 {[%clk 0:01:06]}  f6 {[%clk 0:01:03]} 24. Bxc6+ {[%clk 0:00:39]}  Kxc6 {[%clk 0:00:56]} 25. Kf2 {[%clk 0:00:39]}  fxe5 {[%clk 0:00:54]} 26. Bxe5 {[%clk 0:00:39]}  g6 {[%clk 0:00:51]} 27. h4 {[%clk 0:00:38]}  b6 {[%clk 0:00:51]} 28. Re3 {[%clk 0:00:36]}  Bc2 {[%clk 0:00:50]} 29. Rc3 {[%clk 0:00:36]}  Bf5 {[%clk 0:00:49]} 30. Ke3 {[%clk 0:00:35]}  a5 {[%clk 0:00:45]} 31. Rc1 {[%clk 0:00:35]}  Kb5 {[%clk 0:00:44]} 32. Kf3 {[%clk 0:00:29]}  h5 {[%clk 0:00:41]} 33. Ke3 {[%clk 0:00:25]}  Bd7 {[%clk 0:00:38]} 34. Rg1 {[%clk 0:00:24]}  Bf5 {[%clk 0:00:38]} 35. Rd1 {[%clk 0:00:24]}  Kc6 {[%clk 0:00:38]} 36. Rc1 {[%clk 0:00:23]}  Rc8 {[%clk 0:00:36]} 37. b4 {[%clk 0:00:20]}  Kb5 {[%clk 0:00:29]} 38. bxc5 {[%clk 0:00:19]}  bxc5 {[%clk 0:00:29]} 39. Rc3 {[%clk 0:00:18]}  c4 {[%clk 0:00:28]} 40. Kd4 {[%clk 0:00:18]}  Be6 {[%clk 0:00:27]} 41. Rg3 {[%clk 0:00:17]}  Bf5 {[%clk 0:00:26]} 42. Rc3 {[%clk 0:00:17]}  Rc6 {[%clk 0:00:25]} 43. Kd5 {[%clk 0:00:14]}  Rc5+ {[%clk 0:00:23]} 44. Kd4 {[%clk 0:00:15]}  Be6 {[%clk 0:00:22]} 45. Rc1 {[%clk 0:00:08]}  Rd5+ {[%clk 0:00:20]} 46. Ke3 {[%clk 0:00:04]}  Rd3+ {[%clk 0:00:20]} 47. Kf2 {[%clk 0:00:03]}  Rxa3 {[%clk 0:00:20]} 48. Rd1 {[%clk 0:00:03]}  Rd3 {[%clk 0:00:20]} 49. Rxd3 {[%clk 0:00:03]}  cxd3 {[%clk 0:00:20]} 50. Ke3 {[%clk 0:00:04]}  Kc4 {[%clk 0:00:19]} 51. Kd2 {[%clk 0:00:05]}  a4 {[%clk 0:00:19]} 52. Ba1 {[%clk 0:00:04]}  a3 {[%clk 0:00:20]} 53. Be5 {[%clk 0:00:04]}  Bd7 {[%clk 0:00:19]} 54. Bf6 {[%clk 0:00:04]}  Bf5 {[%clk 0:00:20]} 55. Be5 {[%clk 0:00:04]}  Kb3 {[%clk 0:00:20]} 56. Bf6 {[%clk 0:00:02]}  Ka2 {[%clk 0:00:20]} 57. Kc1 {[%clk 0:00:01]}  d2+ {[%clk 0:00:03]} 58. Kxd2 {[%clk 0:00:02]}  Kb1 {[%clk 0:00:03]} 59. Ke3 {[%clk 0:00:02]}  a2 {[%clk 0:00:03]} 60. Bc3 {[%clk 0:00:02]}  a1=Q {[%clk 0:00:02]} 61. Bxa1 {[%clk 0:00:02]}  Kxa1 {[%clk 0:00:03]} 62. Kd4 {[%clk 0:00:03]}  Kb2 {[%clk 0:00:03]} 63. Ke5 {[%clk 0:00:04]}  Kc3 {[%clk 0:00:04]} 64. Kf6 {[%clk 0:00:04]}  Kd4 {[%clk 0:00:05]} 65. d7 {[%clk 0:00:04]}  Bxd7 {[%clk 0:00:05]} 66. Kxg6 {[%clk 0:00:05]}  Bg4 {[%clk 0:00:05]} 67. f5 {[%clk 0:00:05]}  Ke5 {[%clk 0:00:06]} 68. f6 {[%clk 0:00:05]}  Be6 {[%clk 0:00:04]} 69. Kxh5 {[%clk 0:00:05]}  Kxf6 {[%clk 0:00:05]} 70. Kh6 {[%clk 0:00:06]}  Bf7 {[%clk 0:00:05]} 71. Kh7 {[%clk 0:00:05]}  Kf5 {[%clk 0:00:05]} 72. h5 {[%clk 0:00:06]}  Kg5 {[%clk 0:00:05]} 73. Kg7 {[%clk 0:00:06]}  Kxh5 {[%clk 0:00:05]} 1/2-1/2


[Site "https://www.chess.com"]

[Event "Titled Tuesday Blitz January 17 Early 2023"]
[White "Mammadzada, Gunay"]
[Black "Mikhailovsky, Vladimir"]
[WhiteFideId "13403729"]
[BlackFideId "34105414"]
[WhiteElo "2449"]
[BlackElo "2215"]
[Result "1-0"]
[Round "11"]
[TimeControl "180+2"]
[Date "2023.01.17"]
[WhiteClock "0:00:06"]
[BlackClock "0:00:01"]

1. e4 {[%clk 0:03:00]}  Nf6 {[%clk 0:02:57]} 2. e5 {[%clk 0:03:01]}  Nd5 {[%clk 0:02:57]} 3. c4 {[%clk 0:03:01]}  Nb6 {[%clk 0:02:57]} 4. d4 {[%clk 0:03:02]}  d6 {[%clk 0:02:58]} 5. exd6 {[%clk 0:02:59]}  exd6 {[%clk 0:02:58]} 6. Nc3 {[%clk 0:03:00]}  Be7 {[%clk 0:02:58]} 7. Bd3 {[%clk 0:02:59]}  O-O {[%clk 0:02:53]} 8. Nge2 {[%clk 0:02:59]}  Bg4 {[%clk 0:02:52]} 9. Be3 {[%clk 0:02:57]}  Nc6 {[%clk 0:02:47]} 10. b3 {[%clk 0:02:49]}  Bf6 {[%clk 0:02:43]} 11. O-O {[%clk 0:02:49]}  Re8 {[%clk 0:02:42]} 12. Qd2 {[%clk 0:02:48]}  d5 {[%clk 0:02:30]} 13. c5 {[%clk 0:02:45]}  Nc8 {[%clk 0:02:30]} 14. Nf4 {[%clk 0:02:41]}  N8e7 {[%clk 0:01:50]} 15. h3 {[%clk 0:02:37]}  Bf5 {[%clk 0:01:47]} 16. Bxf5 {[%clk 0:02:32]}  Nxf5 {[%clk 0:01:46]} 17. Nfxd5 {[%clk 0:02:32]}  Bxd4 {[%clk 0:01:44]} 18. Bf4 {[%clk 0:01:59]}  Be5 {[%clk 0:01:13]} 19. Rad1 {[%clk 0:01:54]}  Nfd4 {[%clk 0:00:55]} 20. b4 {[%clk 0:01:43]}  a6 {[%clk 0:00:52]} 21. Rfe1 {[%clk 0:01:36]}  f6 {[%clk 0:00:22]} 22. Bxe5 {[%clk 0:01:25]}  fxe5 {[%clk 0:00:22]} 23. f4 {[%clk 0:01:14]}  e4 {[%clk 0:00:16]} 24. a4 {[%clk 0:01:04]}  Nf5 {[%clk 0:00:04]} 25. Nxe4 {[%clk 0:00:59]}  Qh4 {[%clk 0:00:02]} 26. Nxc7 {[%clk 0:00:54]}  Rad8 {[%clk 0:00:01]} 27. Nd6 {[%clk 0:00:52]}  Rxe1+ {[%clk 0:00:01]} 28. Rxe1 {[%clk 0:00:51]}  h6 {[%clk 0:00:02]} 29. Nxf5 {[%clk 0:00:32]}  Rxd2 {[%clk 0:00:02]} 30. Nxh4 {[%clk 0:00:32]}  Nxb4 {[%clk 0:00:02]} 31. Nf5 {[%clk 0:00:26]}  Nd3 {[%clk 0:00:02]} 32. Re8+ {[%clk 0:00:25]}  Kf7 {[%clk 0:00:02]} 33. Nd6+ {[%clk 0:00:26]}  Kf6 {[%clk 0:00:03]} 34. Nd5+ {[%clk 0:00:24]}  Kg6 {[%clk 0:00:02]} 35. Re6+ {[%clk 0:00:23]}  Kh7 {[%clk 0:00:03]} 36. Nxb7 {[%clk 0:00:07]}  Rd1+ {[%clk 0:00:02]} 37. Kh2 {[%clk 0:00:07]}  Nf2 {[%clk 0:00:01]} 38. c6 {[%clk 0:00:06]} 1-0


[Site "https://www.chess.com"]

[Event "Titled Tuesday Blitz January 17 Early 2023"]
[White "Janaszak, Dawid"]
[Black "Ashraf, Artin"]
[WhiteFideId "1119206"]
[BlackFideId "22514805"]
[WhiteElo "2316"]
[BlackElo "2314"]
[Result "0-1"]
[Round "11"]
[TimeControl "180+2"]
[Date "2023.01.17"]
[WhiteClock "0:00:08"]
[BlackClock "0:00:25"]

1. e4 {[%clk 0:03:00]}  c5 {[%clk 0:02:59]} 2. Nc3 {[%clk 0:03:00]}  Nc6 {[%clk 0:02:59]} 3. Bb5 {[%clk 0:03:00]}  Nd4 {[%clk 0:02:58]} 4. Nf3 {[%clk 0:03:00]}  g6 {[%clk 0:02:58]} 5. O-O {[%clk 0:02:58]}  Bg7 {[%clk 0:02:57]} 6. Re1 {[%clk 0:02:52]}  a6 {[%clk 0:02:57]} 7. Bf1 {[%clk 0:02:51]}  e6 {[%clk 0:02:57]} 8. Nxd4 {[%clk 0:02:37]}  cxd4 {[%clk 0:02:57]} 9. Ne2 {[%clk 0:02:38]}  d5 {[%clk 0:02:41]} 10. d3 {[%clk 0:02:28]}  Ne7 {[%clk 0:02:40]} 11. Bg5 {[%clk 0:02:24]}  dxe4 {[%clk 0:02:14]} 12. dxe4 {[%clk 0:02:23]}  h6 {[%clk 0:02:14]} 13. Bxe7 {[%clk 0:02:16]}  Kxe7 {[%clk 0:02:15]} 14. Qd2 {[%clk 0:02:13]}  Qb6 {[%clk 0:02:06]} 15. c3 {[%clk 0:01:57]}  dxc3 {[%clk 0:01:59]} 16. Nxc3 {[%clk 0:01:58]}  Rd8 {[%clk 0:01:58]} 17. Qc2 {[%clk 0:01:53]}  Bd7 {[%clk 0:01:40]} 18. e5 {[%clk 0:01:50]}  Bc6 {[%clk 0:01:38]} 19. g3 {[%clk 0:01:30]}  Rac8 {[%clk 0:01:32]} 20. Bg2 {[%clk 0:01:29]}  Kf8 {[%clk 0:01:29]} 21. Bxc6 {[%clk 0:01:22]}  Qxc6 {[%clk 0:01:28]} 22. Qe2 {[%clk 0:01:02]}  Kg8 {[%clk 0:01:25]} 23. Rad1 {[%clk 0:01:01]}  Qc5 {[%clk 0:01:21]} 24. Kg2 {[%clk 0:00:45]}  b5 {[%clk 0:01:17]} 25. Rd2 {[%clk 0:00:36]}  b4 {[%clk 0:01:13]} 26. Nb1 {[%clk 0:00:30]}  Rxd2 {[%clk 0:01:00]} 27. Nxd2 {[%clk 0:00:31]}  Qd5+ {[%clk 0:01:00]} 28. Nf3 {[%clk 0:00:25]}  Qxa2 {[%clk 0:00:59]} 29. Rd1 {[%clk 0:00:22]}  a5 {[%clk 0:00:46]} 30. Rd7 {[%clk 0:00:22]}  Qa4 {[%clk 0:00:44]} 31. Qd2 {[%clk 0:00:20]}  Bf8 {[%clk 0:00:40]} 32. h4 {[%clk 0:00:20]}  Qc6 {[%clk 0:00:37]} 33. h5 {[%clk 0:00:18]}  g5 {[%clk 0:00:37]} 34. g4 {[%clk 0:00:17]}  Qe4 {[%clk 0:00:35]} 35. Kg3 {[%clk 0:00:16]}  Rc4 {[%clk 0:00:33]} 36. Rd4 {[%clk 0:00:07]}  Rxd4 {[%clk 0:00:30]} 37. Qxd4 {[%clk 0:00:08]}  Qxd4 {[%clk 0:00:31]} 38. Nxd4 {[%clk 0:00:09]}  a4 {[%clk 0:00:31]} 39. f4 {[%clk 0:00:08]}  Bc5 {[%clk 0:00:29]} 40. Nc2 {[%clk 0:00:07]}  b3 {[%clk 0:00:26]} 41. Ne1 {[%clk 0:00:08]}  a3 {[%clk 0:00:25]} 0-1


[Site "https://www.chess.com"]

[Event "Titled Tuesday Blitz January 17 Early 2023"]
[White "Wagh Suyog"]
[Black "Renjith, Sravan"]
[WhiteFideId "25071688"]
[BlackFideId "4306783"]
[WhiteElo "2313"]
[BlackElo "2172"]
[Result "1-0"]
[Round "11"]
[TimeControl "180+2"]
[Date "2023.01.17"]
[WhiteClock "0:01:33"]
[BlackClock "0:00:04"]

1. e4 {[%clk 0:03:00]}  e5 {[%clk 0:02:57]} 2. Nf3 {[%clk 0:03:00]}  Nf6 {[%clk 0:02:55]} 3. Nxe5 {[%clk 0:02:55]}  d6 {[%clk 0:02:55]} 4. Nc4 {[%clk 0:02:55]}  Nxe4 {[%clk 0:02:51]} 5. Qe2 {[%clk 0:02:55]}  Qe7 {[%clk 0:02:50]} 6. Ne3 {[%clk 0:02:56]}  Nf6 {[%clk 0:02:41]} 7. c4 {[%clk 0:02:54]}  Nc6 {[%clk 0:02:39]} 8. Qd1 {[%clk 0:02:48]}  Bf5 {[%clk 0:02:32]} 9. Be2 {[%clk 0:02:46]}  Bg6 {[%clk 0:02:24]} 10. d4 {[%clk 0:02:42]}  O-O-O {[%clk 0:02:23]} 11. Nc3 {[%clk 0:02:40]}  Ne4 {[%clk 0:02:11]} 12. Ncd5 {[%clk 0:02:38]}  Qe8 {[%clk 0:02:00]} 13. O-O {[%clk 0:02:35]}  f5 {[%clk 0:01:55]} 14. b4 {[%clk 0:02:23]}  Bf7 {[%clk 0:01:32]} 15. b5 {[%clk 0:02:21]}  Ne7 {[%clk 0:01:31]} 16. Bd3 {[%clk 0:02:11]}  Nxd5 {[%clk 0:01:30]} 17. cxd5 {[%clk 0:02:11]}  g6 {[%clk 0:01:22]} 18. Re1 {[%clk 0:02:09]}  Bg7 {[%clk 0:01:20]} 19. Bb2 {[%clk 0:02:07]}  Qd7 {[%clk 0:01:17]} 20. a4 {[%clk 0:02:05]}  Rhe8 {[%clk 0:01:15]} 21. a5 {[%clk 0:02:04]}  f4 {[%clk 0:01:15]} 22. b6 {[%clk 0:01:58]}  Kb8 {[%clk 0:00:28]} 23. Nc2 {[%clk 0:01:49]}  cxb6 {[%clk 0:00:27]} 24. axb6 {[%clk 0:01:48]}  a6 {[%clk 0:00:27]} 25. Bxe4 {[%clk 0:01:48]}  Rxe4 {[%clk 0:00:20]} 26. Rxe4 {[%clk 0:01:47]}  Bxd5 {[%clk 0:00:21]} 27. Rxf4 {[%clk 0:01:47]}  Bh6 {[%clk 0:00:21]} 28. Rh4 {[%clk 0:01:47]}  Bg5 {[%clk 0:00:21]} 29. Rg4 {[%clk 0:01:47]}  Bf6 {[%clk 0:00:21]} 30. Nb4 {[%clk 0:01:45]}  Be6 {[%clk 0:00:20]} 31. Re4 {[%clk 0:01:43]}  d5 {[%clk 0:00:20]} 32. Re1 {[%clk 0:01:42]}  h5 {[%clk 0:00:20]} 33. Nd3 {[%clk 0:01:42]}  Qd6 {[%clk 0:00:19]} 34. Ba3 {[%clk 0:01:36]}  Qxb6 {[%clk 0:00:18]} 35. Bc5 {[%clk 0:01:35]}  Qc6 {[%clk 0:00:18]} 36. Nb4 {[%clk 0:01:36]}  Qd7 {[%clk 0:00:19]} 37. Nxa6+ {[%clk 0:01:36]}  bxa6 {[%clk 0:00:19]} 38. Qb3+ {[%clk 0:01:37]}  Kc8 {[%clk 0:00:18]} 39. Rxa6 {[%clk 0:01:37]}  Re8 {[%clk 0:00:08]} 40. Bd6 {[%clk 0:01:36]}  Qb7 {[%clk 0:00:06]} 41. Rc1+ {[%clk 0:01:35]}  Kd8 {[%clk 0:00:04]} 42. Qxb7 {[%clk 0:01:35]}  Bd7 {[%clk 0:00:04]} 43. Ra8+ {[%clk 0:01:34]}  Bc8 {[%clk 0:00:04]} 44. Rcxc8# {[%clk 0:01:33]} 1-0


[Site "https://www.chess.com"]